fUSD/lending_fUSD_20251118
["ID","MTS","AMOUNT","RATE_DAILY","PERIOD"]
[394323216,1763450834209,-500.0,0.00016621,2]
[394323217,1763450834248,-500.0,0.00016621,2]
[394323218,1763450834281,-2858.38244654,0.00016653,2]
[394323219,1763450834388,-500.0,0.00016621,2]
[394323220,1763450834420,-2858.38244654,0.00016684,2]
[394323221,1763450834453,-424.86266038,0.00016715,2]
[394323222,1763450834535,-2433.51978616,0.00016715,2]
[394323223,1763450834567,-151.0,0.00016722,2]
[394323224,1763450834600,-151.0,0.00016722,2]
[394323225,1763450834788,151.0,0.00016722,2]
[394323226,1763450835249,151.0,0.00016722,2]
[394323227,1763450835281,223.779804,0.00016569,2]
[394323228,1763450835653,151.0,0.00016722,2]
[394323229,1763450836454,151.0,0.00016722,2]
[394323230,1763450837075,154.64989432,0.00016722,2]
[394323235,1763450845988,1300.0,0.000165,6]
[394323236,1763450848076,2246.54072936,0.000166,6]
[394323237,1763450848103,453.45927064,0.000166,6]
[394323238,1763450850247,4000.0,0.000167,6]
[394323244,1763450864230,2244.52729872,0.00041687,31]
[394323249,1763450880355,2412.10714,0.00016722,2]
[394323250,1763450893404,549.97296576,0.00016621,2]
[394323251,1763450895098,1918.34535016,0.0001,2]
[394323252,1763450896490,388.93335044,0.00016664,2]
[394323253,1763450900091,500.0,0.00016622,2]
[394323254,1763450900618,-153.29936798,0.00016722,2]
[394323255,1763450900643,-250.0,0.00016722,2]
[394323256,1763450900668,-195.0,0.00016723,2]
[394323257,1763450900694,-2858.38244654,0.00016746,2]
[394323258,1763450900718,-4386.48156416,0.00016764,2]
[394323259,1763450900742,-300.0,0.00016774,2]
[394323260,1763450900766,-1000.0,0.00016774,2]
[394323261,1763450900790,-1200.0,0.00016775,2]
[394323262,1763450900814,-2858.38244654,0.00016776,2]
[394323263,1763450900840,-4386.48156416,0.00016779,2]
[394323264,1763450900865,-35411.97261062,0.0001678,2]
[394323265,1763450901522,388.93335043,0.00016672,2]
[394323266,1763450906481,388.93335043,0.00016679,2]
[394323267,1763450906783,2716.28048877,0.0001,2]
[394323268,1763450911229,500.0,0.00016621,2]
[394323269,1763450916953,2648.61114401,0.0001,2]
[394323270,1763450916979,5512.39887396,0.0001,2]
[394323271,1763450917015,4306.78194016,0.00015,2]
[394323272,1763450919957,180.82918588,0.00013699,2]
[394323273,1763450919985,2776.28247988,0.00013699,2]
[394323276,1763450950226,250.0,0.00041687,31]
[394323277,1763450950949,250.0,0.00041687,31]
[394323289,1763450951551,250.0,0.00041687,31]
[394323290,1763450952172,250.0,0.00041687,31]
[394323299,1763450952781,250.0,0.00041687,31]
[394323300,1763450953400,250.0,0.00041687,31]
[394323301,1763450954014,250.0,0.00041687,31]
[394323302,1763450954611,250.0,0.00041687,31]
[394323398,1763450975866,-691.49120298,0.00015943,2]
[394323399,1763450978763,-1179.15582057,0.00015943,2]
[394323400,1763450984033,-250.0,0.00015943,2]
[394323401,1763450986887,-496.46705718,0.00015943,2]
[394323421,1763451031492,-133.88591927,0.00015943,2]
[394323422,1763451031505,-305.44648592,0.000164,2]
[394323423,1763451031516,-43.65009481,0.00016603,2]
[394323424,1763451031529,-2117.00277681,0.00016603,2]
[394323425,1763451031539,-1200.0,0.00016621,2]
[394323426,1763451031548,-300.0,0.00016621,2]
[394323427,1763451031557,-300.0,0.00016621,2]
[394323428,1763451031567,-550.0,0.00016621,2]
[394323429,1763451031577,-300.0,0.00016621,2]
[394323430,1763451031587,-26140.00088069,0.00016622,2]
[394323431,1763451031598,-50060.62929022,0.00016622,2]
[394323433,1763451031610,-3782.31350058,0.00016622,2]
[394323435,1763451031622,-2973.39073889,0.00016622,2]
[394323437,1763451031634,-464.0905504,0.00016622,2]
[394323439,1763451031645,-376.8625,0.00016622,2]
[394323440,1763451031658,-271.06057048,0.00016622,2]
[394323441,1763451031669,-323.232,0.00016622,2]
[394323444,1763451034864,-462.20201475,0.00016521,2]
[394323445,1763451036548,500.0,0.00016621,2]
[394323446,1763451036596,500.0,0.00016621,2]
[394323447,1763451036661,500.0,0.00016621,2]
[394323448,1763451036703,500.0,0.00016621,2]
[394323449,1763451036743,500.0,0.00016621,2]
[394323450,1763451036778,159.36334129,0.00016621,2]
[394323451,1763451036821,395.06170953,0.00016621,2]
[394323452,1763451036865,500.0,0.00016621,2]
[394323453,1763451036900,500.0,0.00016621,2]
[394323454,1763451036943,395.06170953,0.00016621,2]
[394323479,1763451037585,-3500.27197697,0.00016622,2]
[394323613,1763451038996,462.20201475,0.00016546,2]
[394323655,1763451039386,-961.0,0.00016622,2]
[394323672,1763451039502,-481.81133,0.00016622,2]
[394323674,1763451039514,-549.76957592,0.00016622,2]
[394323721,1763451039958,-18803.65065294,0.00016622,2]
[394323724,1763451039974,-16074.44903801,0.00016622,2]
[394323726,1763451039985,-4505.45,0.00016622,2]
[394323729,1763451040000,-1954.10564902,0.00016622,2]
[394323731,1763451040011,-1073.74663239,0.00016622,2]
[394323894,1763451042588,-961.0,0.00016622,2]
[394323895,1763451042600,-259.82069288,0.00016622,2]
[394323896,1763451042685,-130524.0309629,0.00016622,2]
[394323897,1763451042697,-721.68458764,0.00016622,2]
[394323898,1763451042708,-479.87427335,0.00016622,2]
[394323901,1763451044989,462.20201475,0.00016571,2]
[394323903,1763451045564,-2705.55231396,0.00016622,2]
[394323904,1763451045812,-903.42,0.00016622,2]
[394323905,1763451045824,-465.36400027,0.00016622,2]
[394323906,1763451045835,-2957.07301025,0.00016622,2]
[394323910,1763451046131,3484.39903646,0.00016571,2]
[394323912,1763451050946,217.31614419,0.00016571,2]
[394323913,1763451050979,961.83967638,0.00016571,2]
[394323914,1763451061776,300.0,0.00016621,2]
[394323915,1763451070995,151.0,0.00041687,31]
[394323916,1763451078016,151.0,0.00041687,31]
[394323917,1763451078668,151.0,0.00041687,31]
[394323918,1763451078727,500.0,0.00016621,2]
[394323919,1763451078992,500.0,0.00016621,2]
[394323920,1763451079093,185.02774489,0.00041687,31]
[394323921,1763451079220,500.0,0.00016621,2]
[394323922,1763451079275,151.0,0.00041687,31]
[394323923,1763451079911,151.0,0.00041687,31]
[394323924,1763451080673,151.0,0.00041687,31]
[394323925,1763451081294,151.0,0.00041687,31]
[394323926,1763451081955,151.0,0.00041687,31]
[394323927,1763451082581,151.0,0.00041687,31]
[394323928,1763451083210,151.0,0.00041687,31]
[394323929,1763451084268,500.0,0.00016621,2]
[394323930,1763451084508,500.0,0.00016621,2]
[394323931,1763451084753,500.0,0.00016621,2]
[394323932,1763451096605,604.93829047,0.00016621,2]
[394323933,1763451108256,460.10931882,0.00016621,2]
[394323934,1763451121425,407.76621544,0.0003,120]
[394323935,1763451121701,300.0,0.00016621,2]
[394323936,1763451126031,500.0,0.00016621,2]
[394323937,1763451138699,300.0,0.00016448,2]
[394323938,1763451140546,336.64829851,0.00016621,2]
[394323939,1763451152821,3236.47441582,0.00016571,2]
[394323940,1763451152850,459.83736771,0.00016571,2]
[394323941,1763451157671,3696.31178346,0.00016608,2]
[394323942,1763451165951,1200.0,0.00016621,2]
[394323943,1763451172829,152.07497255,0.00016544,2]
[394323944,1763451178178,178.36,0.00015943,2]
[394323945,1763451181580,300.0,0.00016621,2]
[394323946,1763451181923,550.0,0.00016621,2]
[394323947,1763451181964,300.0,0.00016621,2]
[394323950,1763451190763,3163.42587628,0.00016544,2]
[394323951,1763451190789,2228.76333257,0.00016544,2]
[394323953,1763451195675,5392.18920879,0.00016584,2]
[394323954,1763451198574,300.0,0.00016477,2]
[394323955,1763451212567,231.821241,0.00041687,30]
[394323956,1763451212941,231.821241,0.00041687,30]
[394323957,1763451213474,231.821241,0.00041687,30]
[394323958,1763451213816,231.821241,0.00041687,30]
[394323959,1763451214148,231.821241,0.00041687,30]
[394323960,1763451214425,231.821241,0.00041687,30]
[394323961,1763451214771,231.821241,0.00041687,30]
[394323962,1763451215145,231.821241,0.00041687,30]
[394323963,1763451215527,231.821241,0.00041687,30]
[394323964,1763451217397,500.0,0.00016621,2]
[394323965,1763451217428,501.05133945,0.00016621,2]
[394323966,1763451218321,231.821241,0.00041687,30]
[394323967,1763451218589,500.00000001,0.00016621,2]
[394323968,1763451218640,231.821241,0.00041687,30]
[394323969,1763451218673,500.0,0.00016621,2]
[394323970,1763451219167,231.821241,0.00041687,30]
[394323971,1763451219441,231.821241,0.00041687,30]
[394323972,1763451220809,231.821241,0.00041687,30]
[394323973,1763451223036,231.821241,0.00041687,30]
[394323974,1763451223414,231.821241,0.00041687,30]
[394323975,1763451223932,231.821241,0.00041687,30]
[394323976,1763451224378,231.821241,0.00041687,30]
[394323977,1763451224746,231.821241,0.00041687,30]
[394323978,1763451225040,231.82125,0.00041687,30]
[394323979,1763451226681,78.00611918,0.00016621,2]
[394323980,1763451226714,421.99388082,0.00016621,2]
[394323981,1763451226774,630.95580467,0.00016621,2]
[394323982,1763451226868,500.0,0.00016621,2]
[394323983,1763451226905,500.0,0.00016621,2]
[394323984,1763451226942,500.0,0.00016621,2]
[394323985,1763451226977,500.0,0.00016621,2]
[394323986,1763451227013,500.0,0.00016621,2]
[394323987,1763451227048,500.0,0.00016621,2]
[394323989,1763451229966,500.0,0.00016621,2]
[394323990,1763451230015,500.0,0.00016621,2]
[394323991,1763451238901,196.38324022,0.00016621,2]
[394323992,1763451239099,500.0,0.00016522,2]
[394323993,1763451240133,500.0,0.00016621,2]
[394323994,1763451240169,500.0,0.00016621,2]
[394323995,1763451243387,500.0,0.00016621,2]
[394323996,1763451243591,500.0,0.00016621,2]
[394323997,1763451243838,527.02812988,0.00016621,2]
[394323998,1763451244865,500.0,0.00016621,2]
[394323999,1763451244921,500.0,0.00016621,2]
[394324000,1763451245067,500.0,0.00016621,2]
[394324001,1763451245130,223.64894441,0.00016522,2]
[394324002,1763451245157,7000.19055559,0.00016522,2]
[394324003,1763451245193,162.43835868,0.00016621,2]
[394324004,1763451246354,500.0,0.00016621,2]
[394324005,1763451247862,2337.38108573,0.00016438,2]
[394324006,1763451247891,4013.91891427,0.00016438,2]
[394324007,1763451250433,507.08014437,0.00016621,2]
[394324008,1763451259062,220.9323924,0.00016523,2]
[394324009,1763451262689,500.0,0.00016621,2]
[394324010,1763451262729,500.0,0.00016621,2]
[394324011,1763451262786,500.0,0.00016621,2]
[394324012,1763451262841,500.0,0.00016621,2]
[394324013,1763451262896,500.0,0.00016621,2]
[394324014,1763451262958,500.0,0.00016621,2]
[394324015,1763451263009,297.52230428,0.00016621,2]
[394324016,1763451263662,1000.0,0.00016522,2]
[394324017,1763451284752,500.0,0.00016621,2]
[394324018,1763451285014,460.55624468,0.00016621,2]
[394324019,1763451285049,39.44375532,0.00016621,2]
[394324020,1763451285618,531.6466883,0.00016621,2]
[394324021,1763451299341,500.0,0.00016621,2]
[394324022,1763451299583,500.0,0.00016621,2]
[394324023,1763451299833,329.83439387,0.00016621,2]
[394324024,1763451302501,1200.0,0.00016621,2]
[394324025,1763451303000,300.0,0.00016621,2]
[394324027,1763451306963,250.0,0.00041687,31]
[394324028,1763451307564,250.0,0.00041687,31]
[394324029,1763451308134,579.86638304,0.00016621,2]
[394324030,1763451308198,250.0,0.00041687,31]
[394324031,1763451308833,250.0,0.00041687,31]
[394324032,1763451309951,250.0,0.00041687,31]
[394324033,1763451310629,250.0,0.00041687,31]
[394324034,1763451311280,250.0,0.00041687,31]
[394324035,1763451311898,250.0,0.00041687,31]
[394324036,1763451313001,222.2989347,0.00016531,2]
[394324037,1763451317350,500.0,0.00016621,2]
[394324038,1763451317616,551.84940414,0.00016621,2]
[394324039,1763451361947,550.0,0.00016621,2]
[394324040,1763451361994,300.0,0.00016621,2]
[394324041,1763451384617,500.0,0.00016621,2]
[394324042,1763451384827,500.0,0.00016621,2]
[394324043,1763451385075,500.0,0.00016621,2]
[394324044,1763451395152,150.0,0.00015803,2]
[394324045,1763451395353,150.0,0.00015803,120]
[394324046,1763451396137,11509.27,0.00041687,45]
[394324047,1763451410825,500.0,0.00016522,2]
[394324048,1763451416718,1745.07044063,0.00016522,2]
[394324049,1763451416745,10000.01,0.00016522,2]
[394324050,1763451416773,10000.01,0.00016522,2]
[394324051,1763451416801,8827.25695937,0.00016522,2]
[394324052,1763451421381,300.0,0.00016621,2]
[394324053,1763451423242,166.66,0.00015016,2]
[394324054,1763451423436,166.66,0.00015332,2]
[394324055,1763451423634,166.66,0.00015648,2]
[394324056,1763451424333,166.66,0.00015965,2]
[394324057,1763451424542,166.66,0.00016281,2]
[394324058,1763451424756,39.45304063,0.00016597,2]
[394324059,1763451424785,127.20695937,0.00016597,2]
[394324060,1763451429490,500.0,0.00016621,2]
[394324061,1763451429814,500.0,0.00016621,2]
[394324062,1763451430155,159.73276608,0.00016621,2]
[394324063,1763451435025,1000.0,0.00016522,2]
[394324064,1763451435834,891.3485539,0.00016444,2]
[394324065,1763451445851,579.86638304,0.00016621,2]
[394324066,1763451470765,500.0,0.00016621,2]
[394324067,1763451484055,2500.0,0.00016522,2]
[394324068,1763451485604,250.6160495,0.00016621,2]
[394324069,1763451498222,152.07497253,0.00016522,2]
[394324070,1763451517501,500.0,0.00016621,2]
[394324072,1763451533996,2339.16431558,0.00016522,2]
[394324073,1763451534025,1009.89321954,0.00016522,2]
[394324074,1763451538980,3349.05753509,0.00016564,2]
[394324075,1763451539271,193.31584335,0.00016522,2]
[394324076,1763451541674,300.0,0.00016621,2]
[394324077,1763451541839,300.0,0.00016621,2]
[394324078,1763451541970,257.0,0.00016621,2]
[394324079,1763451543986,3349.05753509,0.00016606,2]
[394324080,1763451547559,500.0,0.00016621,2]
[394324081,1763451547601,159.73276608,0.00016621,2]
[394324082,1763451547674,500.0,0.00016621,2]
[394324083,1763451549747,81.95310085,0.00016621,2]
[394324084,1763451549772,145.50978137,0.00016621,2]
[394324085,1763451563877,151.0,0.00041687,120]
[394324086,1763451564217,151.0,0.00041687,120]
[394324087,1763451564496,156.424648,0.00041687,120]
[394324088,1763451564666,151.0,0.00041687,120]
[394324089,1763451564965,151.0,0.00041687,120]
[394324090,1763451565365,579.86638304,0.00016621,2]
[394324091,1763451565442,151.0,0.00041687,120]
[394324092,1763451566426,151.0,0.00041687,120]
[394324093,1763451566714,151.0,0.00041687,120]
[394324094,1763451567062,151.0,0.00041687,120]
[394324095,1763451567408,151.0,0.00041687,120]
[394324096,1763451567906,194.018336,0.00041687,120]
[394324097,1763451580483,157.32755515,0.00016621,2]
[394324098,1763451580689,151.0,0.0004169,120]
[394324099,1763451581038,151.0,0.0004169,120]
[394324100,1763451581348,151.0,0.0004169,120]
[394324101,1763451581906,173.87043,0.0004169,120]
[394324102,1763451585008,151.0,0.0004169,120]
[394324103,1763451585332,151.0,0.0004169,120]
[394324104,1763451585704,257.504081,0.0004169,120]
[394324105,1763451594916,151.0,0.0004169,120]
[394324106,1763451595216,151.0,0.0004169,120]
[394324107,1763451595500,151.0,0.0004169,120]
[394324108,1763451595801,151.0,0.0004169,120]
[394324109,1763451596299,151.0,0.0004169,120]
[394324110,1763451596623,169.407374,0.0004169,120]
[394324111,1763451601597,300.0,0.00016621,2]
[394324112,1763451601789,1200.0,0.00016621,2]
[394324113,1763451605067,180.71,0.00016612,2]
[394324114,1763451605408,250.0,0.00015853,2]
[394324115,1763451605472,1000.0,0.00016522,2]
[394324116,1763451605588,180.71,0.00016612,2]
[394324117,1763451605624,500.0,0.00016621,2]
[394324118,1763451605808,180.71,0.00016612,2]
[394324119,1763451607601,5325.17628044,0.00016612,2]
[394324120,1763451607630,3256.44371956,0.00016612,2]
[394324121,1763451608977,163.66,0.00016612,2]
[394324122,1763451610803,151.0,0.0004169,120]
[394324123,1763451611331,151.0,0.0004169,120]
[394324124,1763451611443,180.803075,0.0004169,120]
[394324125,1763451613009,500.0,0.00016621,2]
[394324126,1763451613056,500.0,0.00016621,2]
[394324127,1763451613110,500.0,0.00016621,2]
[394324128,1763451613247,648.65161704,0.00016621,2]
[394324129,1763451614595,476.51909946,0.00016621,2]
[394324130,1763451615466,500.0,0.00016621,2]
[394324131,1763451615713,535.90375237,0.00016621,2]
[394324132,1763451617075,500.0,0.00016621,2]
[394324133,1763451617116,500.0,0.00016621,2]
[394324134,1763451617156,500.0,0.00016621,2]
[394324135,1763451617195,500.0,0.00016621,2]
[394324136,1763451617268,500.0,0.00016621,2]
[394324137,1763451617304,418.83181157,0.00016621,2]
[394324138,1763451617337,81.16818843,0.00016621,2]
[394324139,1763451617375,500.0,0.00016621,2]
[394324140,1763451617410,500.0,0.00016621,2]
[394324141,1763451617447,500.0,0.00016621,2]
[394324142,1763451617488,500.0,0.00016621,2]
[394324143,1763451617523,438.92201326,0.00016621,2]
[394324144,1763451617584,500.0,0.00016621,2]
[394324145,1763451617639,500.0,0.00016621,2]
[394324146,1763451617700,500.0,0.00016621,2]
[394324147,1763451625194,820.857675,0.0004169,120]
[394324148,1763451625248,676.129946,0.0004169,120]
[394324149,1763451625511,820.857675,0.0004169,120]
[394324150,1763451625591,676.129946,0.0004169,120]
[394324151,1763451625841,820.857675,0.0004169,120]
[394324152,1763451625932,676.129946,0.0004169,120]
[394324153,1763451626211,820.857675,0.0004169,120]
[394324154,1763451626261,151.0,0.0004169,120]
[394324155,1763451626314,676.129946,0.0004169,120]
[394324156,1763451626515,820.857675,0.0004169,120]
[394324157,1763451626573,151.0,0.0004169,120]
[394324158,1763451626623,676.129946,0.0004169,120]
[394324159,1763451626825,820.857675,0.0004169,120]
[394324160,1763451626884,151.0,0.0004169,120]
[394324161,1763451627142,820.857675,0.0004169,120]
[394324162,1763451627214,676.129946,0.0004169,120]
[394324163,1763451627456,820.857675,0.0004169,120]
[394324164,1763451627529,676.129946,0.0004169,120]
[394324165,1763451627644,151.0,0.0004169,120]
[394324166,1763451627765,820.857675,0.0004169,120]
[394324167,1763451627835,676.129946,0.0004169,120]
[394324168,1763451627932,151.0,0.0004169,120]
[394324169,1763451628087,820.857675,0.0004169,120]
[394324170,1763451628182,676.129946,0.0004169,120]
[394324171,1763451628264,290.664579,0.0004169,120]
[394324172,1763451628467,820.857675,0.0004169,120]
[394324173,1763451628518,676.129946,0.0004169,120]
[394324174,1763451628852,820.857675,0.0004169,120]
[394324175,1763451628915,676.129946,0.0004169,120]
[394324176,1763451629171,820.857675,0.0004169,120]
[394324177,1763451629225,676.129946,0.0004169,120]
[394324178,1763451629491,820.857675,0.0004169,120]
[394324179,1763451629557,676.129946,0.0004169,120]
[394324180,1763451629884,820.857675,0.0004169,120]
[394324181,1763451629939,676.129946,0.0004169,120]
[394324182,1763451630198,820.857675,0.0004169,120]
[394324183,1763451630300,676.129946,0.0004169,120]
[394324184,1763451630492,820.857675,0.0004169,120]
[394324185,1763451630531,500.0,0.00016621,2]
[394324186,1763451630613,676.129946,0.0004169,120]
[394324187,1763451630841,820.857675,0.0004169,120]
[394324188,1763451631123,676.129946,0.0004169,120]
[394324189,1763451631161,506.97500746,0.00016621,2]
[394324190,1763451631420,676.129946,0.0004169,120]
[394324191,1763451631780,820.857675,0.0004169,120]
[394324192,1763451631836,676.129946,0.0004169,120]
[394324193,1763451632098,676.129946,0.0004169,120]
[394324194,1763451632152,820.857671,0.0004169,120]
[394324195,1763451634830,884.809956,0.0004169,120]
[394324196,1763451634923,157.94714,0.0004169,120]
[394324197,1763451635173,884.809956,0.0004169,120]
[394324198,1763451635238,157.94714,0.0004169,120]
[394324199,1763451635768,884.809956,0.0004169,120]
[394324200,1763451636015,157.94714,0.0004169,120]
[394324201,1763451636079,637.04,0.00019178,30]
[394324202,1763451636137,884.809956,0.0004169,120]
[394324203,1763451636507,157.94714,0.0004169,120]
[394324204,1763451636561,884.809956,0.0004169,120]
[394324205,1763451636654,157.94714,0.0004169,120]
[394324206,1763451636705,884.809956,0.0004169,120]
[394324207,1763451636999,157.94714,0.0004169,120]
[394324208,1763451637047,884.809956,0.0004169,120]
[394324210,1763451637297,157.94714,0.0004169,120]
[394324211,1763451637794,157.94714,0.0004169,120]
[394324212,1763451637843,884.809956,0.0004169,120]
[394324213,1763451638114,884.809956,0.0004169,120]
[394324214,1763451638227,157.94714,0.0004169,120]
[394324215,1763451638570,157.94714,0.0004169,120]
[394324216,1763451638635,884.809956,0.0004169,120]
[394324217,1763451638936,157.94714,0.0004169,120]
[394324218,1763451639083,884.809956,0.0004169,120]
[394324219,1763451639298,157.94714,0.0004169,120]
[394324220,1763451639356,203.450306,0.0004169,120]
[394324221,1763451639410,884.809956,0.0004169,120]
[394324222,1763451639641,157.94714,0.0004169,120]
[394324223,1763451639699,203.450306,0.0004169,120]
[394324224,1763451639759,884.809956,0.0004169,120]
[394324225,1763451639969,157.94714,0.0004169,120]
[394324226,1763451640021,884.809956,0.0004169,120]
[394324227,1763451640143,203.450306,0.0004169,120]
[394324228,1763451640281,157.94714,0.0004169,120]
[394324229,1763451640402,151.0,0.0004169,120]
[394324230,1763451640459,884.809956,0.0004169,120]
[394324231,1763451640508,203.450306,0.0004169,120]
[394324232,1763451640651,157.94714,0.0004169,120]
[394324233,1763451640705,151.0,0.0004169,120]
[394324234,1763451640763,884.809956,0.0004169,120]
[394324235,1763451640952,203.450306,0.0004169,120]
[394324236,1763451641003,157.94714,0.0004169,120]
[394324237,1763451641052,884.809956,0.0004169,120]
[394324238,1763451641109,151.0,0.0004169,120]
[394324239,1763451641258,203.450306,0.0004169,120]
[394324240,1763451641318,884.809956,0.0004169,120]
[394324241,1763451641424,151.0,0.0004169,120]
[394324242,1763451641478,157.94714,0.0004169,120]
[394324243,1763451641636,884.809956,0.0004169,120]
[394324244,1763451641685,203.450306,0.0004169,120]
[394324245,1763451641735,151.0,0.0004169,120]
[394324246,1763451641935,157.94714,0.0004169,120]
[394324247,1763451641989,884.809952,0.0004169,120]
[394324248,1763451642060,151.0,0.0004169,120]
[394324249,1763451642115,203.450306,0.0004169,120]
[394324250,1763451642170,157.947138,0.0004169,120]
[394324251,1763451642382,203.450306,0.0004169,120]
[394324252,1763451642721,203.450306,0.0004169,120]
[394324253,1763451643057,203.450306,0.0004169,120]
[394324254,1763451643360,203.450306,0.0004169,120]
[394324255,1763451643652,203.450306,0.0004169,120]
[394324256,1763451644011,203.450306,0.0004169,120]
[394324257,1763451644369,203.450306,0.0004169,120]
[394324258,1763451644669,203.450306,0.0004169,120]
[394324259,1763451645005,203.450306,0.0004169,120]
[394324260,1763451645333,203.450306,0.0004169,120]
[394324261,1763451645652,203.450306,0.0004169,120]
[394324262,1763451645993,203.450315,0.0004169,120]
[394324263,1763451654981,2500.0,0.00016522,2]
[394324264,1763451661348,300.0,0.00016621,2]
[394324265,1763451668812,151.0,0.0004169,120]
[394324266,1763451669121,151.0,0.0004169,120]
[394324267,1763451669405,151.0,0.0004169,120]
[394324268,1763451669775,151.0,0.0004169,120]
[394324269,1763451670093,151.0,0.0004169,120]
[394324270,1763451670295,151.0,0.0004169,120]
[394324271,1763451670474,151.0,0.0004169,120]
[394324272,1763451670733,151.0,0.0004169,120]
[394324273,1763451670785,151.0,0.0004169,120]
[394324274,1763451671069,151.0,0.0004169,120]
[394324275,1763451671126,151.0,0.0004169,120]
[394324276,1763451671375,151.0,0.0004169,120]
[394324277,1763451671424,151.0,0.0004169,120]
[394324278,1763451671535,500.0,0.00016621,2]
[394324279,1763451671676,151.0,0.0004169,120]
[394324280,1763451671784,500.0,0.00016621,2]
[394324281,1763451671896,151.0,0.0004169,120]
[394324282,1763451672001,189.139503,0.0004169,120]
[394324283,1763451672246,151.0,0.0004169,120]
[394324284,1763451672606,151.0,0.0004169,120]
[394324285,1763451672934,151.0,0.0004169,120]
[394324286,1763451673256,151.0,0.0004169,120]
[394324287,1763451673559,151.0,0.0004169,120]
[394324288,1763451673920,162.25041,0.0004169,120]
[394324289,1763451674427,159.012011,0.0004169,120]
[394324290,1763451675501,225.944382,0.0004169,120]
[394324291,1763451675835,225.944382,0.0004169,120]
[394324292,1763451676440,225.944382,0.0004169,120]
[394324293,1763451676743,225.944382,0.0004169,120]
[394324294,1763451677022,225.944382,0.0004169,120]
[394324295,1763451677625,225.944382,0.0004169,120]
[394324296,1763451677839,225.944382,0.0004169,120]
[394324297,1763451678184,225.944382,0.0004169,120]
[394324298,1763451678498,225.944382,0.0004169,120]
[394324299,1763451678810,225.944382,0.0004169,120]
[394324300,1763451679193,225.944382,0.0004169,120]
[394324301,1763451679546,225.944382,0.0004169,120]
[394324302,1763451679728,500.0,0.00016621,2]
[394324303,1763451679944,225.944382,0.0004169,120]
[394324304,1763451680149,328.35184158,0.00016621,2]
[394324305,1763451680253,225.944382,0.0004169,120]
[394324306,1763451680618,225.944382,0.0004169,120]
[394324307,1763451680968,225.944382,0.0004169,120]
[394324308,1763451681298,225.944382,0.0004169,120]
[394324309,1763451681684,225.944382,0.0004169,120]
[394324310,1763451682048,225.944382,0.0004169,120]
[394324311,1763451682343,225.944373,0.0004169,120]
[394324312,1763451684242,344.59294927,0.00016621,2]